bitfinex/quotes_ETHUSD_20220311
["timestamp","ask_amount","ask_price","bid_price","bid_amount"]
[1646998834074,4.1126,2637.2,2636.8,1.05079826]
[1646998834275,4.1126,2637.2,2636.9,0.7578993]
[1646998834574,1.2126,2637.2,2636.9,0.95182967]
[1646998834776,2.9,2637.0,2636.9,0.7578993]
[1646998835476,2.9,2637.0,2636.8,0.30478841]
[1646998835676,4.01434,2637.0,2636.8,0.30478841]
[1646998835876,2.9,2637.0,2636.8,0.00478841]
[1646998836279,2.9,2637.0,2636.7,1.70642]
[1646998836680,1.2126,2637.2,2636.9,0.758]
[1646998836881,2.9,2637.0,2636.9,0.758]
[1646998837278,2.9,2637.0,2636.8,0.00478834]
[1646998837479,2.9,2637.0,2636.7,1.51682]
[1646998837721,1.2126,2637.2,2636.7,1.51682]
[1646998837919,2.9,2636.8,2636.7,1.51682]
[1646998838119,2.9,2636.9,2636.7,1.51682]
[1646998839022,2.9,2636.9,2636.7,1.52146481]
[1646998839724,2.9,2636.9,2636.8,0.06998695]
[1646998840323,1.2126,2637.2,2636.8,0.06998695]
[1646998840526,4.0626,2637.2,2636.7,1.52146481]
[1646998840727,1.2126,2637.2,2636.8,0.84354219]
[1646998841027,2.85,2636.9,2636.8,0.08557219]
[1646998841476,2.85,2636.9,2636.8,0.00464473]
[1646998841777,3.75341011,2636.9,2636.8,0.00464473]
[1646998842370,3.75341011,2636.9,2636.7,0.0008]
[1646998842573,9.5222,2636.8,2636.7,0.00393014]
[1646998843474,9.5222,2636.8,2636.7,0.0008]
[1646998844279,2.85,2636.9,2636.7,0.0008]
[1646998844879,0.18594742,2637.1,2636.7,0.0008]
[1646998845121,0.18594742,2637.1,2636.7,0.0039302]
[1646998845324,0.18594742,2637.1,2636.8,1.04592232]
[1646998845527,0.18594742,2637.1,2636.9,1.59569582]
[1646998845528,2.85,2637.0,2636.9,1.59569582]
[1646998846328,2.85,2637.0,2636.4,1.82970348]
[1646998846534,2.85,2637.0,2636.7,0.3]
[1646998846736,0.18594742,2637.1,2636.5,1.0]
[1646998846737,2.85,2636.8,2636.5,1.0]
[1646998846932,0.05155598,2637.0,2636.5,1.0]
[1646998847130,2.85,2636.8,2636.5,1.5161]
[1646998847330,2.85,2636.8,2636.5,1.8951]
[1646998847532,2.85,2636.8,2636.5,1.5161]
[1646998847731,2.85,2636.6,2636.5,1.5161]
[1646998848033,0.05155598,2637.0,2636.5,1.5161]
[1646998848231,19.7150518,2637.7,2636.5,1.5161]
[1646998848232,0.0381193,2636.8,2636.6,16.0140582]
[1646998848432,4.0268,2637.7,2637.2,0.80865947]
[1646998848634,2.09645077,2638.0,2637.1,0.07548383]
[1646998848885,2.09645077,2638.2,2637.5,1.0]
[1646998849077,3.9171,2638.3,2637.5,1.37756681]
[1646998849282,3.9171,2638.3,2637.6,0.19393037]
[1646998849478,2.09645077,2637.7,2637.6,1.51542]
[1646998849678,3.21442442,2637.7,2637.6,1.51542]
[1646998850077,2.09645077,2637.7,2637.6,1.51542]
[1646998850277,2.09645077,2637.9,2637.6,1.51542]
[1646998850479,2.09645077,2638.1,2637.6,1.51542]
[1646998850678,0.05184706,2638.2,2637.6,1.51542]
[1646998851080,2.09645077,2637.9,2637.6,1.51542]
[1646998851280,0.00434079,2638.0,2637.6,1.51542]
[1646998851587,0.00434079,2638.0,2637.7,0.08154177]
[1646998851980,0.00434079,2638.0,2637.9,0.07684544]
[1646998852380,3.9171,2638.3,2637.9,1.59218544]
[1646998852627,0.19092563,2638.0,2637.9,1.59218544]
[1646998853429,0.1896,2638.0,2637.9,5.09218544]
[1646998853629,0.1896,2638.0,2637.9,1.59218544]
[1646998853831,0.1896,2638.0,2637.9,2.78611581]
[1646998854435,2.28605077,2638.0,2637.9,2.59218544]
[1646998854631,2.28605077,2638.0,2637.9,1.59218544]
[1646998854829,2.28605077,2638.0,2637.8,1.75769]
[1646998854830,1.72781964,2638.0,2637.8,1.75769]
[1646998855032,1.72781964,2637.9,2637.8,0.75769]
[1646998855233,1.72781964,2637.9,2637.8,0.83064479]
[1646998855534,0.00130953,2638.1,2637.8,0.83064479]
[1646998855733,0.00130953,2638.1,2637.8,0.75769]
[1646998855734,1.72781964,2637.9,2637.8,0.75769]
[1646998856133,0.00130953,2638.0,2637.8,1.515409]
[1646998856389,1.72781964,2638.4,2637.9,0.75133]
[1646998856580,2.90611964,2638.5,2638.0,1.5150994]
[1646998856778,2.90611964,2638.5,2638.1,0.06826389]
[1646998857179,1.1783,2638.5,2638.1,0.06826389]
[1646998857379,1.1783,2638.5,2638.2,0.7576]
[1646998857580,1.72781964,2638.3,2638.2,0.7576]
[1646998858582,3.8341,2638.9,2638.2,0.7576]
[1646998858583,3.8341,2638.9,2638.3,0.44764341]
[1646998858784,3.8341,2638.9,2638.4,0.94687]
[1646998858982,3.8341,2638.9,2638.3,0.44764341]
[1646998858983,1.72781964,2638.5,2638.3,0.44764341]
[1646998859381,1.72781964,2638.5,2638.2,1.5150967]
[1646998859591,0.04814643,2638.7,2638.2,1.5150967]
[1646998859781,0.00434433,2638.5,2638.2,1.5150967]
[1646998860219,1.72781964,2638.3,2638.2,1.5150967]
[1646998860428,0.00434433,2638.5,2638.2,1.59356034]
[1646998860628,1.72781964,2638.5,2638.2,1.59356034]
[1646998861029,0.00434433,2638.4,2638.2,1.59356034]
[1646998861325,0.00434433,2638.4,2638.2,1.5150967]
[1646998861525,1.72781964,2638.3,2638.2,1.5150967]
[1646998862130,1.72781964,2638.4,2638.2,1.5150967]
[1646998862328,1.73216397,2638.4,2638.2,1.8150967]
[1646998862726,1.73216397,2638.4,2638.2,1.5150967]
[1646998862928,0.0837301,2638.3,2638.2,1.5150967]
[1646998863227,0.0837301,2638.3,2638.2,0.7574967]
[1646998864690,0.95740664,2638.3,2638.2,0.7574967]
[1646998865589,0.95740664,2638.3,2638.1,1.51501]
[1646998865889,2.17146623,2638.2,2637.7,1.51551]
[1646998866089,0.95740664,2638.3,2637.7,1.51551]
[1646998866090,1.72781964,2637.8,2637.7,1.51551]
[1646998866292,1.72781964,2637.8,2637.7,2.273321]
[1646998867196,1.72781964,2637.8,2637.7,2.573321]
[1646998867390,1.72781964,2637.8,2637.7,2.873321]
[1646998868017,1.72781964,2637.8,2637.7,3.820401]
[1646998868216,1.72781964,2637.8,2637.7,3.520401]
[1646998868418,0.00434433,2637.9,2637.7,3.71433137]
[1646998868619,0.00434433,2637.9,2637.7,3.41433137]
[1646998868822,0.00434433,2637.9,2637.7,3.71433137]
[1646998869024,0.00434433,2637.9,2637.7,3.41433137]
[1646998869025,1.73216397,2637.9,2637.7,3.41433137]
[1646998869224,1.72781964,2637.9,2637.7,2.76725137]
[1646998869427,1.72781964,2637.9,2637.7,2.46725137]
[1646998869628,1.73216397,2637.9,2637.7,2.76725137]
[1646998870025,1.73216397,2637.9,2637.7,2.46725137]
[1646998870226,1.73216397,2637.9,2637.7,2.76725137]
[1646998870428,1.73216397,2637.9,2637.8,0.75773]
[1646998870429,1.72781964,2637.9,2637.8,0.75773]
[1646998870628,1.73216397,2637.9,2637.8,0.75773]
[1646998870827,0.00434433,2637.9,2637.8,0.75773]
[1646998871229,1.73216397,2637.9,2637.8,0.75773]
[1646998871478,0.00434433,2637.9,2637.8,0.75773]
[1646998871678,0.05646418,2638.1,2637.8,0.75773]
[1646998871879,0.00131769,2638.0,2637.8,2.18288027]
[1646998872079,1.72781964,2637.9,2637.8,2.18288027]
[1646998872878,0.05646418,2638.1,2637.8,2.18288027]
[1646998873079,0.00131769,2638.0,2637.8,2.18288027]
[1646998873280,0.00131769,2638.0,2637.9,0.94713]
[1646998873984,0.05646418,2638.1,2637.9,0.94713]
[1646998874181,0.00434433,2638.1,2637.9,0.94713]
[1646998874382,0.00434433,2638.1,2637.9,4.64106037]
[1646998874591,0.00434433,2638.1,2638.0,3.5]
[1646998874784,0.00434433,2638.1,2637.9,1.74106037]
[1646998875136,0.00434433,2638.1,2638.0,0.06501236]
[1646998875325,1.72781964,2638.2,2638.1,1.0416568]
[1646998875626,1.07219894,2638.7,2638.1,2.65148]
[1646998875828,1.72781964,2638.2,2638.1,2.65148]
[1646998876026,1.07219894,2638.7,2638.1,2.95148]
[1646998876226,1.72781964,2638.3,2638.1,2.65148]
[1646998876426,1.72781964,2638.3,2638.1,2.84541037]
[1646998876828,1.72781964,2638.3,2638.1,0.3]
[1646998876829,2.8701528,2638.3,2638.1,0.3]
[1646998877028,2.8701528,2638.3,2638.0,2.3833079]
[1646998877227,0.0503176,2638.2,2638.0,3.0304779]
[1646998877427,1.72781964,2638.1,2638.0,3.0304779]
[1646998877632,1.72781964,2638.1,2638.0,3.5987263]
[1646998877832,0.04989427,2638.7,2638.0,5.68648667]
[1646998878030,0.00434433,2638.2,2638.0,5.68648667]
[1646998878628,1.72781964,2638.1,2638.0,3.79265667]
[1646998879680,1.72781964,2638.1,2638.0,2.27723827]
[1646998880685,1.72781964,2638.1,2637.8,2.27272]
[1646998880686,2.93057786,2638.1,2637.7,1.326105]
[1646998880881,0.00434433,2638.2,2637.7,1.326105]
[1646998880882,1.72781964,2637.8,2637.7,1.326105]
[1646998881083,0.00434433,2638.2,2637.8,1.51529]
[1646998881282,0.05946632,2638.8,2637.8,1.77685349]
[1646998881480,1.72781964,2638.3,2638.1,1.0]
[1646998881680,1.72781964,2638.3,2638.2,0.75764]
[1646998882482,1.72781964,2638.3,2637.9,0.19393037]
[1646998882483,0.03614442,2638.1,2637.9,0.19393037]
[1646998882724,1.72781964,2638.0,2637.9,0.19393037]
[1646998883426,0.03614442,2638.1,2637.9,0.19393037]
[1646998883829,1.72781964,2638.0,2637.9,0.19393037]
[1646998884428,0.04048875,2638.1,2637.9,0.19393037]
[1646998884628,0.04048875,2638.1,2637.9,2.08795037]
[1646998884828,0.03614442,2638.1,2638.0,1.0]
[1646998885328,0.04048875,2638.1,2638.0,0.07964864]
[1646998885532,1.76830839,2638.1,2638.0,0.07964864]
[1646998885729,1.76830839,2638.1,2637.9,2.84559037]
[1646998886129,1.76396406,2638.1,2637.9,2.84559037]
[1646998886368,1.76830839,2638.1,2637.9,2.84559037]
[1646998886569,0.03585224,2638.2,2638.0,3.5]
[1646998886570,4.099e-05,2638.2,2638.0,3.5]
[1646998886770,4.099e-05,2638.2,2638.1,0.07050045]
[1646998886973,4.099e-05,2638.2,2638.1,1.07050045]
[1646998887175,4.099e-05,2638.2,2638.1,1.26443082]
[1646998887376,1.72781964,2638.3,2638.1,1.26443082]
[1646998887579,1.72781964,2638.3,2638.2,0.75761]
[1646998888377,0.06043874,2638.8,2638.2,4.25761]
[1646998888580,1.1627,2639.2,2638.2,4.25761]
[1646998888581,1.1627,2639.2,2638.5,0.07202537]
[1646998888780,1.72781964,2639.2,2638.5,4.71458537]
[1646998888982,0.87815058,2639.5,2638.6,3.033443]
[1646998889184,3.9994,2639.8,2638.8,0.3851]
[1646998889384,3.9994,2639.8,2638.7,3.5]
[1646998889385,0.84501527,2639.7,2638.9,5.3461]
[1646998889585,3.9994,2639.8,2639.5,1.0]
[1646998889586,0.84501527,2639.8,2639.5,1.0]
[1646998889783,0.84501527,2639.8,2639.6,0.94638]
[1646998889982,0.84501527,2639.8,2639.6,2.70347]
[1646998890238,0.05212465,2639.7,2639.6,13.45347]
[1646998890437,0.05212465,2639.7,2639.6,1.70347]
[1646998890635,0.850333,2639.8,2639.6,1.70347]
[1646998890840,0.850333,2639.8,2639.6,2.00347]
[1646998891437,0.850333,2639.8,2639.6,2.30347]
[1646998891637,0.850333,2639.8,2639.7,0.1894]
[1646998891843,0.84501527,2640.3,2639.8,7.0]
[1646998892039,0.00096,2640.6,2640.1,2.15498473]
[1646998892256,0.43758836,2641.4,2640.5,2.15498473]
[1646998892442,13.2871,2642.3,2640.7,0.97538163]
[1646998892443,6.4662,2642.2,2640.7,0.97538163]
[1646998892640,6.4662,2642.2,2641.0,1.0]
[1646998892641,0.84501527,2641.8,2641.0,1.0]
[1646998892948,2.4773,2642.2,2641.3,1.0]
[1646998893139,0.01992501,2642.4,2641.4,8.1034422]
[1646998893343,0.01992501,2642.4,2641.7,1.89138]
[1646998893541,0.04799201,2642.5,2641.7,1.89138]
[1646998893741,3.6783,2642.6,2641.7,0.3]
[1646998893980,3.6783,2642.6,2641.4,3.84119509]
[1646998893981,3.0,2642.4,2641.4,3.84119509]
[1646998894182,3.0,2642.1,2641.4,4.07723186]
[1646998894378,7.06386782,2642.5,2641.4,4.07723186]
[1646998894379,3.01264379,2642.4,2641.4,3.84119509]
[1646998894580,0.01237164,2641.7,2641.4,3.84119509]
[1646998894781,0.06724175,2642.1,2641.4,3.84119509]
[1646998895581,0.06724175,2642.1,2641.4,5.20427772]
[1646998895785,0.06724175,2642.1,2641.5,0.75675]
[1646998895988,0.01235914,2642.4,2641.5,0.75675]
[1646998895989,0.00096,2642.5,2641.6,0.07233825]
[1646998896184,0.06178969,2642.7,2642.0,0.94524]
[1646998896185,0.013134,2642.7,2642.0,0.94524]
[1646998896485,0.01716124,2643.2,2643.0,0.009]
[1646998896687,7.16840902,2644.5,2643.1,6.5]
[1646998896991,7.16840902,2644.5,2644.0,0.291]
[1646998896992,2.62373973,2644.5,2644.0,0.291]
[1646998897185,1.0,2644.1,2644.0,4.7178]
[1646998897386,0.7299382,2644.8,2644.0,0.83698979]
[1646998897623,0.7299382,2644.8,2644.0,1.0568]
[1646998897624,1.78495201,2644.8,2644.0,1.0568]
[1646998897824,0.04092649,2644.7,2644.2,0.75574]
[1646998898023,0.04092649,2644.7,2644.3,0.2834106]
[1646998898224,0.0493944,2644.9,2644.3,4.99903712]
[1646998898225,0.04035807,2644.6,2644.3,4.99903712]
[1646998898426,0.0024,2644.8,2644.5,4.5]
[1646998898631,0.0024,2644.8,2644.7,0.08802616]
[1646998898827,0.0024,2644.8,2644.7,3.09134124]
[1646998899030,0.0064636,2645.2,2644.8,7.5]
[1646998899233,0.089507,2645.7,2644.7,8.73527161]
[1646998899234,0.0258544,2645.4,2645.1,5.88849]
[1646998899433,0.016252,2645.8,2645.2,3.75719829]
[1646998899631,0.016252,2645.8,2645.2,0.66288053]
[1646998899836,0.10967942,2645.1,2645.0,0.15268663]
[1646998900036,0.10967942,2645.1,2644.2,0.07068531]
[1646998900233,0.10967942,2645.1,2644.2,1.0]
[1646998900630,0.10967942,2645.1,2644.2,2.51157]
[1646998900830,0.10967942,2645.1,2644.2,1.51157]
[1646998901030,0.10967942,2645.1,2644.3,0.189]
[1646998901236,0.00131769,2644.8,2644.4,0.52708057]
[1646998901504,0.0011608,2645.8,2645.2,0.94418]
[1646998901700,0.0011608,2645.8,2645.3,3.961]
[1646998901900,0.0466665,2645.9,2645.4,0.05982018]
[1646998902096,0.0466665,2645.9,2645.5,1.0]
[1646998902300,0.0548102,2646.0,2645.4,0.00425033]
[1646998902500,0.0548102,2646.0,2645.4,0.30425033]
[1646998902698,0.0548102,2646.0,2645.4,0.00425033]
[1646998902899,1.85346652,2646.7,2645.4,0.00425033]
[1646998903097,0.0189464,2646.4,2645.4,0.00425033]
[1646998903300,3.0,2646.3,2645.4,0.00425033]
[1646998903805,0.0189464,2646.4,2645.4,0.00425033]
[1646998903806,2.95,2646.0,2645.4,0.00425033]
[1646998903998,0.0189464,2646.4,2645.4,0.00425033]
[1646998903999,0.38283037,2646.2,2645.4,0.00425033]
[1646998904198,3.76972124,2645.8,2645.4,0.00425033]
[1646998904398,2.95,2645.5,2645.4,0.00425033]
[1646998904600,1.38063037,2646.1,2645.4,0.00425033]
[1646998904800,1.1867,2646.1,2645.4,0.00425033]
[1646998904999,2.95,2646.0,2645.4,0.00425033]
[1646998905227,2.95,2646.0,2644.5,11.293]
[1646998905228,8.5,2645.4,2644.5,11.293]
[1646998905423,2.95,2645.7,2644.5,11.293]
[1646998905622,0.93310829,2644.8,2644.5,11.293]
[1646998905825,3.9683,2646.1,2644.7,0.05]
[1646998905826,4.1573,2646.1,2644.7,0.05]
[1646998906025,2.3723,2645.6,2644.7,0.05]
[1646998906224,2.3723,2645.6,2644.6,0.23558771]
[1646998906429,2.3723,2645.6,2645.0,0.05]
[1646998906626,2.3723,2645.6,2644.8,0.19393037]
[1646998906829,1.11765008,2645.5,2644.8,0.24393037]
[1646998907025,1.11765008,2645.5,2644.6,0.23558771]
[1646998907225,1.11765008,2645.5,2644.8,0.05]
[1646998907427,1.11765008,2645.5,2645.0,0.00391572]
[1646998908228,2.3723,2645.6,2644.8,0.05]
[1646998908430,2.3723,2645.6,2644.8,1.70018]
[1646998908629,2.3723,2645.6,2645.4,0.0012]
[1646998909307,1.02892718,2645.5,2645.4,0.0012]
[1646998909709,2.3723,2645.6,2645.4,0.0012]
[1646998910708,0.85591094,2645.5,2645.4,0.0012]
[1646998910908,0.85591094,2645.5,2644.8,1.0]
[1646998911110,0.85591094,2645.5,2645.0,0.00391941]
[1646998911307,0.85591094,2645.5,2645.0,0.29491941]
[1646998911716,0.85591094,2645.5,2644.5,11.293]
[1646998911717,8.5,2645.4,2644.5,11.293]
[1646998911915,11.45,2645.4,2644.5,11.293]
[1646998912109,0.86256718,2644.6,2644.5,11.293]
[1646998912622,0.00096,2645.3,2644.5,11.293]
[1646998912822,8.47428,2645.6,2644.5,11.293]
[1646998913020,8.47332,2645.6,2644.5,11.293]
[1646998913224,10.15842,2645.6,2644.0,0.75592]
[1646998913422,10.15842,2645.6,2643.9,0.5]
[1646998913423,2.95,2645.1,2643.9,0.5]
[1646998913621,0.461,2645.1,2643.9,0.5]
[1646998913822,0.461,2645.1,2643.2,1.24534871]
[1646998913823,2.95,2644.6,2643.2,1.24534871]
[1646998914026,0.94516,2644.8,2643.2,1.0]
[1646998914027,0.461,2644.8,2643.2,1.0]
[1646998914231,2.95096,2644.6,2643.2,1.0]
[1646998914425,0.85911177,2643.8,2643.0,1.009]
[1646998915125,0.00096,2644.1,2643.0,0.009]
[1646998915326,0.00096,2644.3,2643.2,0.617036]
[1646998915625,5.15706,2644.5,2643.5,0.05]
[1646998915826,5.1561,2644.5,2643.0,0.20293037]
[1646998916028,1.03189373,2643.2,2643.0,0.009]
[1646998916877,0.3851,2644.0,2643.0,0.059]
[1646998917176,0.00096,2643.9,2643.1,0.05]
[1646998917372,0.3851,2644.0,2643.2,1.51233]
[1646998917573,0.3851,2643.9,2643.0,0.009]
[1646998917972,0.96575375,2643.2,2643.1,0.75628]
[1646998918173,0.3851,2643.9,2643.1,0.75628]
[1646998918174,0.3851,2643.9,2643.1,1.75158]
[1646998918373,0.3851,2643.9,2642.6,5.37909021]
[1646998918374,0.06607366,2643.6,2642.6,3.11061021]
[1646998918574,0.3851,2643.6,2642.6,1.0]
[1646998918776,0.3851,2643.4,2642.6,1.0]
[1646998918977,3.5,2643.5,2642.4,0.01995119]
[1646998918978,0.3851,2643.1,2642.4,0.01995119]
[1646998919178,0.0599017,2643.0,2642.5,0.75646]
[1646998919382,0.00096,2643.6,2642.5,0.75646]
[1646998919579,0.06436579,2643.6,2642.5,0.75646]
[1646998919778,1.6914,2643.9,2642.5,1.70202]
[1646998919779,0.05496154,2643.8,2642.5,1.70202]
[1646998919978,0.05496154,2643.8,2642.7,1.5126]
[1646998920229,0.06017701,2643.7,2642.7,1.5126]
[1646998920430,0.3851,2643.7,2642.4,0.21388156]
[1646998920635,3.5,2643.6,2642.4,19.21388156]
[1646998920831,0.46196,2643.8,2642.6,0.3851]
[1646998920832,0.00096,2643.8,2642.6,0.3851]
[1646998921033,0.00096,2643.8,2642.5,0.94553]
[1646998921034,0.06424257,2643.8,2643.1,0.00490574]
[1646998921229,1.2304,2643.9,2643.1,0.76119574]
[1646998921435,1.2304,2643.9,2643.2,1.16024462]
[1646998921631,1.2304,2643.9,2643.2,0.19393037]
[1646998921830,0.00096,2644.3,2643.2,0.19393037]
[1646998921831,0.00096,2644.3,2643.4,0.2835586]
[1646998922036,0.00096,2644.5,2643.5,5.45460859]
[1646998922232,0.00096,2644.6,2643.8,1.0]
[1646998922432,0.00096,2645.0,2643.8,1.0]
[1646998922830,0.00096,2645.0,2644.2,0.94493]
[1646998923032,0.00096,2645.0,2644.0,0.5]
[1646998923033,4.01766,2645.1,2644.3,1.7951304]
[1646998923232,1.1994,2645.1,2644.3,1.7951304]
[1646998923631,1.5845,2645.1,2644.3,0.2834604]
[1646998924078,1.5845,2645.1,2644.8,0.475]
[1646998924079,1.1994,2645.1,2644.8,0.475]
[1646998924277,1.1994,2645.1,2643.8,0.5669745]
[1646998924278,0.37538119,2644.2,2644.0,0.2834896]
[1646998924480,0.00096,2644.9,2644.6,0.00516792]
[1646998924878,0.00425255,2645.3,2644.6,0.00516792]
[1646998925079,0.00425255,2645.3,2644.7,0.75572]
[1646998925280,0.96581876,2645.4,2644.7,0.75572]
[1646998925681,0.00425304,2645.3,2644.9,0.00499309]
[1646998926379,0.00425304,2645.3,2645.0,0.75574]
[1646998926580,0.85454953,2645.5,2645.0,0.75574]
[1646998926781,0.85454953,2645.5,2644.8,0.94474]
[1646998926982,0.00096,2645.9,2644.8,0.94474]
[1646998927184,3.00036,2646.1,2644.7,2.13565008]
[1646998927385,3.00036,2646.1,2644.3,2.83393]
[1646998927386,0.3851,2645.5,2644.3,0.5668866]
[1646998927638,0.3851,2645.4,2643.7,0.7561]
[1646998927927,0.3851,2645.2,2643.9,0.94511]
[1646998928126,1.0949063,2644.6,2644.0,0.26346095]
[1646998928323,1.0949063,2644.6,2644.0,2.15326095]
[1646998928525,0.00096,2645.1,2644.0,1.8898]
[1646998928723,0.3851,2645.2,2644.0,1.8898]
[1646998929128,0.3851,2645.2,2644.2,0.9449]
[1646998929330,0.461,2645.1,2644.5,0.00516807]
[1646998929532,8.5,2644.6,2643.4,1.0]
[1646998929930,8.5,2644.6,2643.4,1.2406476]
[1646998930131,8.5,2644.6,2643.4,1.0]
[1646998930330,8.5,2644.6,2643.4,1.94523]
[1646998930331,0.94526,2644.4,2643.4,1.94523]
[1646998930632,0.98239547,2643.9,2643.4,1.94523]
[1646998930930,0.94622,2644.4,2643.4,1.0]
[1646998931131,5.1493,2644.5,2643.4,1.0]
[1646998931377,5.1493,2644.5,2643.6,0.7561]
[1646998931777,5.1493,2644.5,2643.4,1.0]
[1646998931979,0.89364217,2644.1,2643.4,1.0]
[1646998932383,0.89364217,2644.1,2643.4,0.94525]
[1646998932978,0.0591029,2644.0,2643.4,0.94525]
[1646998933181,0.0591029,2644.0,2643.2,0.5]
[1646998933182,0.81887647,2643.7,2643.2,0.5]
[1646998933380,0.05509531,2643.6,2643.2,0.5]
[1646998933582,6.19760186,2644.5,2643.2,0.5]
[1646998933583,0.06749543,2644.4,2643.4,0.94532]
[1646998934382,0.06749543,2644.4,2643.8,0.00514635]
[1646998934582,0.06028469,2644.0,2643.8,0.00514635]
[1646998935233,0.06028469,2644.0,2643.2,0.5]
[1646998935535,0.05643896,2644.2,2643.8,0.00514635]
[1646998935736,0.461,2644.2,2643.8,0.00514635]
[1646998936132,0.0651514,2644.1,2643.8,0.00514635]
[1646998936337,0.06883977,2643.9,2643.8,0.00514635]
[1646998936535,0.06883977,2643.9,2643.2,0.5]
[1646998936735,0.06883977,2643.9,2643.2,0.8]
[1646998936937,0.06486939,2644.4,2643.4,1.0]
[1646998937136,0.06390939,2644.4,2643.4,1.0]
[1646998937341,0.06390939,2644.4,2643.4,1.49393037]
[1646998937538,0.00347198,2644.0,2643.6,0.85246535]
[1646998937735,0.00347198,2644.0,2643.5,0.3]
[1646998937934,0.00347198,2644.0,2643.5,4.74512]
[1646998938134,0.00347198,2644.0,2643.7,0.19393037]
[1646998938535,0.00347198,2644.0,2643.7,12.19393037]
[1646998938974,0.00347198,2644.0,2643.8,8.0]
[1646998940780,0.00347198,2644.0,2643.7,18.57854833]
[1646998940976,1.33412198,2644.0,2643.7,0.00514833]
[1646998941176,2.53996607,2643.9,2643.7,0.00514833]
[1646998941376,1.62986535,2643.8,2643.7,0.00514833]
[1646998941583,1.62986535,2643.8,2643.5,3.9]
[1646998941779,0.97771893,2643.9,2643.5,3.9]
[1646998941780,0.05492157,2643.7,2643.5,3.9]
[1646998942177,0.00347198,2644.0,2643.5,3.9]
[1646998942824,0.38857198,2644.0,2643.5,3.9]
[1646998943020,1.94749666,2643.9,2643.5,3.9]
[1646998943219,0.00347198,2644.0,2643.5,0.19214836]
[1646998943220,8.0,2643.7,2643.5,0.19214836]
[1646998943421,0.06424896,2643.6,2643.4,0.5]
[1646998943622,0.9586906,2643.6,2643.4,0.5]
[1646998944025,0.00347198,2644.0,2643.4,0.5]
[1646998944324,0.07339454,2644.0,2643.4,0.5]
[1646998944524,0.00347198,2644.0,2643.4,0.5]
[1646998944725,0.04013463,2643.9,2643.4,0.5]
[1646998946372,0.04013463,2643.9,2643.5,0.19393037]
[1646998946972,0.04013463,2643.9,2643.6,0.07080293]
[1646998947174,0.04013463,2643.9,2643.8,0.3851]
[1646998947378,0.04013463,2643.9,2643.8,0.45666762]
[1646998947980,0.04013463,2643.9,2643.8,0.07156762]
[1646998948179,1.26510108,2644.5,2643.9,6.0]
[1646998948379,1.2424,2645.2,2644.1,0.2834363]
[1646998948380,0.05984459,2645.0,2644.1,0.2834363]
[1646998948577,0.89361554,2644.9,2644.1,0.2834363]
[1646998948977,0.89361554,2644.9,2644.1,0.6685363]
[1646998949178,0.89361554,2644.9,2644.2,0.0709498]
[1646998949377,0.89361554,2644.9,2644.1,0.3851]
[1646998949378,0.06823582,2644.8,2644.1,0.3851]
[1646998949578,0.06823582,2644.8,2644.1,1.14099]
[1646998950433,0.06823582,2644.8,2644.0,1.0]
[1646998950641,0.06823582,2644.8,2644.1,0.75591]
[1646998951438,0.06823582,2644.8,2644.0,1.0]
[1646998951835,0.45333582,2644.8,2644.0,1.7559]
[1646998952038,0.45333582,2644.8,2643.4,0.69393037]
[1646998952039,0.3851,2644.6,2643.4,0.69393037]
[1646998952242,0.94536,2644.3,2643.4,0.69393037]
[1646998952438,0.06563959,2644.1,2643.4,0.5]
[1646998952636,0.85857562,2644.0,2643.4,0.5]
[1646998952837,0.85857562,2644.0,2643.9,0.00515268]
[1646998953736,0.85857562,2644.0,2643.4,0.5]
[1646998953737,0.06019372,2643.9,2643.4,0.5]
[1646998953978,0.06019372,2643.9,2643.8,0.00515275]
[1646998954979,0.06019372,2643.9,2643.4,0.5]
[1646998955377,0.06019372,2643.9,2643.7,0.0051529]
[1646998955980,0.03524572,2643.8,2643.7,0.0051529]
[1646998956185,0.03524572,2643.8,2643.7,0.19393037]
[1646998956583,0.03524572,2643.8,2643.7,0.00497906]
[1646998957381,0.03524572,2643.8,2643.6,0.82436473]
[1646998957382,0.03524572,2643.8,2643.6,0.75607]
[1646998957621,0.03524572,2643.8,2643.6,0.83072485]
[1646998958226,0.03524572,2643.8,2643.7,0.19393037]
[1646998958430,0.03524572,2643.8,2643.7,13.30949873]
[1646998958626,0.03524572,2643.8,2643.7,0.64452404]
[1646998959026,0.03524572,2643.8,2643.7,1.40054404]
[1646998959528,0.07094673,2644.4,2643.8,7.8851]
[1646998959729,0.03817871,2644.8,2643.9,0.45023088]
[1646998959930,0.03721871,2644.8,2643.9,0.45023088]
[1646998960127,0.00422648,2644.6,2644.0,0.07340935]
[1646998960329,0.00422648,2644.6,2644.3,0.3851]
[1646998960731,0.00422648,2644.6,2644.2,0.06123356]
[1646998960937,0.86484272,2644.7,2644.5,29.63367]
[1646998961398,0.00127262,2644.6,2644.5,29.63367]
[1646998962198,0.03748327,2644.7,2644.5,29.63367]
[1646998962401,0.00096,2645.3,2644.6,22.92096116]
[1646998962600,0.00127264,2644.7,2644.6,20.42096116]
[1646998962803,0.00127264,2644.7,2644.6,22.65151481]
[1646998963098,0.00127264,2644.7,2644.6,2.49330826]
[1646998963300,0.00096,2646.0,2644.8,11.75]
[1646998963509,1.6222412,2646.0,2645.0,11.75]
[1646998963700,0.06340562,2645.2,2645.1,0.189]
[1646998963900,0.06340562,2645.2,2645.1,2.14065]
[1646998964098,0.06340562,2645.2,2645.1,2.52358037]
[1646998964299,0.06340562,2645.2,2645.1,3.52358037]
[1646998964498,0.06340562,2645.2,2645.1,15.27358037]
[1646998964699,0.0605874,2646.0,2645.1,15.27358037]
[1646998964900,0.0605874,2646.0,2645.2,0.25404689]
[1646998965123,0.0605874,2646.0,2645.2,0.83307726]
[1646998965124,0.0012683,2645.3,2645.2,0.83307726]
[1646998965324,0.0012683,2645.3,2645.2,0.44797726]
[1646998965525,0.0012683,2645.3,2645.2,0.19393037]
[1646998965930,0.0605874,2646.0,2645.2,0.19393037]
[1646998966137,0.00126914,2645.4,2645.2,0.19393037]
[1646998967033,0.06626688,2646.0,2645.3,0.189]